bitfinex/quotes_ETHUSD_20240816
["timestamp","ask_amount","ask_price","bid_price","bid_amount"]
[1723850542473,0.76191467,2598.9,2598.8,7.69584]
[1723850542687,0.76191467,2598.9,2598.8,8.465424]
[1723850542688,0.06191467,2598.9,2598.8,8.465424]
[1723850542884,0.7,2599.2,2599.0,3.84755]
[1723850543211,0.7,2599.2,2599.0,7.6951]
[1723850543212,0.05994334,2599.1,2599.0,7.6951]
[1723850544899,0.05994334,2599.1,2599.0,3.84755]
[1723850546578,0.05994334,2599.1,2599.0,8.464712]
[1723850546908,0.7,2599.5,2599.0,6.84763]
[1723850547073,0.06017764,2599.4,2599.3,3.84705]
[1723850547717,0.06017764,2599.4,2599.2,3.84732]
[1723850548918,0.06017764,2599.4,2599.2,7.69458]
[1723850549205,0.06017764,2599.4,2599.2,3.84726]
[1723850549523,2.43,2599.3,2599.1,3.84742]
[1723850549696,0.7,2599.2,2598.8,3.84783]
[1723850549887,0.75997554,2599.2,2598.9,3.84776]
[1723850550620,0.75997554,2599.2,2598.8,3.84783]
[1723850550783,0.75997554,2599.2,2598.3,3.84858]
[1723850550784,0.7,2598.5,2598.3,3.84858]
[1723850550985,0.7,2598.5,2598.2,3.84881]
[1723850551192,0.05983414,2598.4,2598.2,3.84881]
[1723850551489,0.7,2598.2,2598.0,3.84909]
[1723850551703,0.05951169,2598.1,2598.0,3.84909]
[1723850552486,0.05951169,2598.1,2598.0,7.6982]
[1723850552682,0.7,2598.2,2598.1,3.84896]
[1723850552920,0.75960515,2598.2,2598.1,7.69792]
[1723850553134,0.05960515,2598.2,2598.1,10.69792]
[1723850553298,3.13,2598.5,2598.3,3.84859]
[1723850553628,0.05969876,2598.4,2598.3,7.69714]
[1723850555597,0.7,2598.2,2598.1,6.84887]
[1723850555911,0.75954801,2598.2,2598.1,6.84887]
[1723850556425,0.05954801,2598.2,2598.1,11.767627]
[1723850556829,3.13,2598.5,2598.3,3.84854]
[1723850557136,0.05974945,2598.4,2598.3,3.84854]
[1723850559428,0.05974945,2598.4,2598.2,3.84881]
[1723850560633,0.05974945,2598.4,2598.3,3.84867]
[1723850560842,0.05974945,2598.4,2598.3,7.69734]
[1723850561148,2.43,2598.8,2598.6,3.84812]
[1723850561341,2.43,2598.8,2598.6,4.232932]
[1723850561501,2.43,2598.8,2598.6,7.69626]
[1723850561701,2.43,2598.8,2598.6,3.84812]
[1723850562249,17.6946124,2599.3,2598.3,3.0]
[1723850562250,2.43,2599.5,2598.8,3.8479]
[1723850562450,2.43,2599.5,2598.7,6.3657]
[1723850562451,2.43,2599.5,2599.4,3.84704]
[1723850562595,2.43,2599.5,2599.2,3.8472]
[1723850563851,2.43,2599.5,2599.3,3.84715]
[1723850564322,0.04950542,2599.4,2599.3,3.84715]
[1723850565241,0.04950542,2599.4,2599.2,3.8472]
[1723850565538,0.7,2599.2,2599.0,3.84754]
[1723850565835,0.7,2599.2,2599.1,6.84748]
[1723850566250,0.8036562,2599.6,2599.1,6.84748]
[1723850566541,0.7,2599.4,2599.2,3.84729]
[1723850568007,0.0498694,2599.3,2599.2,3.84729]
[1723850568217,0.0498694,2599.3,2599.2,7.69462]
[1723850569533,0.0498694,2599.3,2599.2,3.84729]
[1723850573667,0.0498694,2599.3,2599.2,8.764096]
[1723850574127,0.7,2599.7,2599.4,3.84695]
[1723850574334,0.7,2599.7,2599.4,7.6939]
[1723850575706,0.7,2599.7,2599.4,3.84695]
[1723850575907,1.5036562,2599.7,2599.4,3.84695]
[1723850576111,0.7,2599.3,2599.2,3.84724]
[1723850577567,0.74969394,2599.3,2599.1,6.84747]
[1723850577851,0.74969394,2599.3,2599.1,6.8474]
[1723850578554,0.74969394,2599.3,2599.2,3.84733]
[1723850580838,0.74969394,2599.3,2599.1,6.84748]
[1723850581261,0.74969394,2599.3,2599.1,6.8474]
[1723850582119,2.4162,2599.2,2599.1,6.8474]
[1723850582521,2.4162,2599.2,2599.1,3.0]
[1723850582717,2.4162,2599.2,2599.0,3.0]
[1723850582918,2.4162,2599.2,2599.0,6.84761]
[1723850583154,2.4162,2599.2,2599.0,3.0]
[1723850583355,0.7,2599.0,2598.9,6.84777]
[1723850584153,0.7,2599.0,2598.9,10.69555]
[1723850584747,0.7,2599.0,2598.9,11.765105]
[1723850584949,0.74955481,2599.0,2598.9,11.765105]
[1723850585760,0.04955481,2599.0,2598.9,17.869485]
[1723850586175,0.7,2599.7,2599.5,3.84677]
[1723850586783,0.0502096,2599.6,2599.5,3.84677]
[1723850587477,0.7,2599.4,2598.9,6.326155]
[1723850587776,0.7,2599.4,2599.3,3.84713]
[1723850588647,0.74990963,2599.4,2599.3,3.84713]
[1723850593010,3.22190963,2599.4,2599.3,3.84713]
[1723850593392,3.22190963,2599.4,2599.2,3.84732]
[1723850593393,3.54410059,2599.4,2599.1,3.84742]
[1723850593593,0.7,2599.1,2599.0,3.84755]
[1723850593906,2.84410059,2599.4,2598.9,3.0]
[1723850593907,2.52190963,2599.4,2598.9,3.0]
[1723850594208,0.7,2599.5,2599.3,3.84718]
[1723850597623,0.0499409,2599.4,2599.3,3.84718]
[1723850605207,0.8535971,2599.4,2599.3,3.84718]
[1723850605673,0.8535971,2599.4,2599.0,6.84751]
[1723850605674,0.0499409,2599.4,2599.0,6.84751]
[1723850605907,0.0499409,2599.4,2598.5,11.97454955]
[1723850605908,0.7,2599.0,2598.9,6.84774]
[1723850606160,0.74939917,2599.0,2598.9,6.84774]
[1723850608155,0.74939917,2599.0,2598.9,3.0]
[1723850608555,0.74939917,2599.0,2598.6,6.84814]
[1723850608556,2.4937,2598.9,2598.6,6.84814]
[1723850608783,0.7,2598.6,2598.3,4.65489955]
[1723850608959,2.4937,2598.5,2598.3,3.84866]
[1723850609301,0.85537423,2598.4,2598.3,3.84866]
[1723850609465,0.04915119,2598.4,2598.3,3.84866]
[1723850613179,0.7,2598.6,2598.4,3.84849]
[1723850613365,0.7,2598.6,2598.4,7.69698]
[1723850614081,0.7,2598.6,2598.4,3.84849]
[1723850614982,0.7,2598.6,2598.4,7.69693]
[1723850615173,0.7,2598.6,2598.4,7.69688]
[1723850615688,0.7,2598.6,2598.4,3.84844]
[1723850616986,0.0488638,2598.5,2598.4,3.84844]
[1723850619652,0.0488638,2598.5,2598.4,8.466675]
[1723850619850,0.7,2598.9,2598.7,3.84794]
[1723850620093,0.7,2598.9,2598.8,3.84792]
[1723850620793,0.74911919,2598.9,2598.8,3.84792]
[1723850621667,0.74911919,2598.9,2598.7,3.84804]
[1723850622997,0.74911919,2598.9,2598.7,3.84807]
[1723850623189,0.74911919,2598.9,2598.8,3.84792]
[1723850624196,0.74911919,2598.9,2598.6,3.84818]
[1723850628362,0.04911919,2598.9,2598.8,7.69584]
[1723850628563,8.16,2599.2,2599.1,3.84748]
[1723850629101,8.20947607,2599.2,2599.1,3.84748]
[1723850629266,0.74947607,2599.2,2599.1,3.84748]
[1723850630865,0.04947607,2599.2,2599.1,7.69496]
[1723850631066,1.50622304,2599.5,2599.3,3.84709]
[1723850631067,0.7,2599.5,2599.3,3.84709]
[1723850632168,0.04947889,2599.4,2599.3,3.84709]
[1723850642525,0.04947889,2599.4,2599.3,7.69427]
[1723850642821,1.50622304,2599.8,2599.6,3.84672]
[1723850644209,1.50622304,2599.8,2599.4,3.84698]
[1723850644210,0.80622304,2599.7,2599.4,3.84698]
[1723850644603,0.7,2599.5,2599.4,3.84698]
[1723850645687,1.50622304,2599.8,2599.5,3.84686]
[1723850645924,0.7,2599.8,2599.5,3.84686]
[1723850646134,1.50622304,2599.8,2599.5,3.84686]
[1723850646321,1.50622304,2599.8,2599.6,3.84665]
[1723850646526,0.04993667,2599.7,2599.6,3.84665]
[1723850648289,0.04993667,2599.7,2599.6,10.127741]
[1723850648627,3.90027715,2600.1,2599.6,10.127741]
[1723850648628,2.29296475,2600.1,2600.0,3.84615]
[1723850649402,2.29296475,2600.1,2599.9,3.8463]
[1723850649590,2.29296475,2600.1,2599.7,3.84645]
[1723850649795,2.29296475,2600.1,2599.8,6.84643]
[1723850649995,0.04829541,2600.0,2599.8,6.84643]
[1723850650305,0.04829541,2600.0,2599.9,7.6926]
[1723850650634,0.04829541,2600.0,2599.9,16.8258]
[1723850650844,0.7,2600.6,2600.5,3.84541]
[1723850653133,0.7,2600.6,2600.4,3.84556]
[1723850653291,0.7,2600.6,2600.4,7.69103]
[1723850653608,0.04710261,2600.5,2600.4,3.84547]
[1723850653803,0.04710261,2600.5,2600.2,9.35648]
[1723850654036,0.04710261,2600.5,2600.3,3.84569]
[1723850654803,2.52440261,2600.5,2600.2,3.84571]
[1723850655055,2.52440261,2600.5,2600.3,3.84567]
[1723850655915,0.7,2600.3,2600.2,3.84571]
[1723850656219,0.74690068,2600.3,2600.0,7.69212]
[1723850656543,0.74690068,2600.3,2600.1,3.0]
[1723850657151,0.7,2600.3,2600.1,3.0]
[1723850657321,0.04679971,2600.2,2600.1,3.0]
[1723850658046,0.7,2600.3,2600.1,3.0]
[1723850658212,0.04679971,2600.2,2600.1,3.0]
[1723850658411,0.7,2600.3,2600.1,3.0]
[1723850658780,0.04679971,2600.2,2600.1,3.0]
[1723850659066,0.7,2600.3,2600.1,3.0]
[1723850659413,0.04693757,2600.2,2600.1,3.0]
[1723850659633,0.7,2600.3,2600.1,6.846]
[1723850659947,0.04693757,2600.2,2600.1,6.846]
[1723850660334,0.7,2600.3,2600.1,6.846]
[1723850660940,0.04693757,2600.2,2600.1,6.846]
[1723850661254,0.7,2600.3,2600.1,6.846]
[1723850661451,0.04693757,2600.2,2600.1,6.846]
[1723850661622,0.7,2600.3,2600.1,6.846]
[1723850661825,0.04693757,2600.2,2600.1,6.846]
[1723850662435,0.7,2600.3,2600.1,3.0]
[1723850662640,2.52423757,2600.2,2600.1,3.0]
[1723850663454,2.52423757,2600.2,2600.1,6.846]
[1723850663619,0.04693757,2600.2,2600.1,6.846]
[1723850663826,0.7,2600.3,2600.1,6.846]
[1723850664025,0.04679971,2600.2,2600.1,6.846]
[1723850664244,0.7,2600.3,2600.1,6.846]
[1723850664557,0.04679971,2600.2,2600.1,6.846]
[1723850664923,0.7,2600.3,2600.1,6.846]
[1723850665123,0.04680767,2600.2,2600.1,6.846]
[1723850665563,0.7,2600.3,2600.1,6.846]
[1723850665744,0.04680767,2600.2,2600.1,6.846]
[1723850666133,0.7,2600.3,2600.1,6.846]
[1723850666323,0.04680767,2600.2,2600.1,6.846]
[1723850667031,0.7,2600.3,2600.1,6.846]
[1723850667356,0.04680767,2600.2,2600.1,6.846]
[1723850667658,0.7,2600.3,2600.1,6.846]
[1723850667841,0.04695546,2600.2,2600.1,6.846]
[1723850668042,0.7,2600.3,2600.1,6.846]
[1723850668459,0.04695546,2600.2,2600.1,6.846]
[1723850668766,0.7,2600.3,2600.2,3.84585]
[1723850671649,0.74705763,2600.3,2600.2,3.84585]
[1723850676739,0.74705763,2600.3,2600.1,6.846]
[1723850676740,2.4083,2600.2,2600.1,6.846]
[1723850676976,0.7,2600.0,2599.9,7.69249]
[1723850677487,0.74675746,2600.0,2599.9,10.69249]
[1723850677896,0.7,2600.0,2599.9,10.69249]
[1723850678102,0.7,2600.0,2599.9,12.312797]
[1723850678682,0.74661839,2600.0,2599.9,12.312797]
[1723850678993,0.7,2600.0,2599.9,12.312797]
[1723850680392,0.7,2600.0,2599.9,10.69249]
[1723850686732,3.1799,2600.0,2599.9,6.84619]
[1723850686876,3.1799,2600.0,2599.7,3.84647]
[1723850687218,3.49789,2600.0,2599.8,3.0]
[1723850687371,3.49789,2600.0,2599.8,6.84644]
[1723850687570,3.49789,2600.0,2599.9,3.8463]
[1723850687805,3.1799,2600.0,2599.9,3.8463]
[1723850688008,3.1799,2600.0,2599.8,3.0]
[1723850688375,3.1799,2600.0,2599.9,3.8463]
[1723850692647,3.1799,2600.0,2599.8,6.84644]
[1723850693127,3.98612304,2600.0,2599.8,6.84644]
[1723850693685,3.1799,2600.0,2599.8,6.84644]
[1723850694119,3.98612304,2600.0,2599.8,6.84644]
[1723850694909,4.66601501,2600.0,2599.8,3.0]
[1723850695115,4.66601501,2600.0,2599.7,6.84655]
[1723850695309,4.66601501,2600.0,2599.8,3.84642]
[1723850695624,4.66601501,2600.0,2599.8,7.69284]
[1723850696811,4.66601501,2600.0,2599.8,3.84642]
[1723850697128,3.1799,2600.0,2599.8,3.84637]
[1723850697494,3.1799,2600.0,2599.8,7.69273]
[1723850697695,3.98612304,2600.0,2599.8,7.69273]
[1723850698917,3.98612304,2600.0,2599.9,3.8463]
[1723850699891,3.98612304,2600.0,2599.8,3.84636]
[1723850700123,3.98612304,2600.0,2599.8,7.69272]
[1723850700324,3.98612304,2600.0,2599.8,3.84636]
[1723850700506,3.98612304,2600.0,2599.9,3.8463]
[1723850703335,3.98612304,2600.0,2599.8,3.84636]
[1723850703531,3.98612304,2600.0,2599.8,7.6927]
[1723850704435,3.98612304,2600.0,2599.9,3.8463]
[1723850706636,0.7,2600.0,2599.9,7.6926]
[1723850721118,0.80622304,2600.5,2600.4,7.69112]
[1723850721259,4.6641124,2600.8,2600.4,7.69112]
[1723850721260,0.7,2600.8,2600.7,7.69022]
[1723850721459,0.7,2600.8,2600.7,9.35422]
[1723850721666,0.1279038,2600.9,2600.8,11.53491]
[1723850721894,0.1279038,2600.9,2600.8,15.77656531]
[1723850723481,0.1279038,2600.9,2600.8,11.93159531]
[1723850725329,0.17014569,2600.9,2600.8,15.77656531]
[1723850725618,0.1279038,2600.9,2600.8,18.08276531]
[1723850725773,0.1279038,2600.9,2600.8,14.23779531]
[1723850726291,0.1279038,2600.9,2600.8,18.08276531]
[1723850726485,0.1279038,2600.9,2600.8,14.23779531]
[1723850726687,0.1279038,2600.9,2600.8,18.08276531]
[1723850728514,0.1279038,2600.9,2600.8,21.92773531]
[1723850728515,3.8e-06,2600.9,2600.8,21.92773531]
[1723850728715,0.7,2601.8,2601.7,7.68728]
[1723850728913,0.74319991,2601.8,2601.7,7.68728]
[1723850729784,0.74319991,2601.8,2601.7,3.84364]
[1723850733401,3.1803,2601.5,2601.4,3.84405]
[1723850733740,3.2233601,2601.5,2601.4,6.84405]
[1723850733999,0.7430601,2601.5,2601.4,6.84405]
[1723850737562,0.0430601,2601.5,2601.4,6.84405]
[1723850737971,2.4803,2601.7,2601.4,6.84405]
[1723850738175,0.04305613,2601.5,2601.4,6.84405]
[1723850738326,2.4803,2601.7,2601.4,6.84405]
[1723850738534,0.04301922,2601.6,2601.4,6.84405]
[1723850740833,0.04301922,2601.6,2601.5,3.84393]
[1723850741148,2.4803,2601.9,2601.5,3.84393]
[1723850741349,0.7,2601.6,2601.5,3.84393]
[1723850741530,0.74301922,2601.6,2601.5,3.84393]
[1723850741731,0.74301922,2601.6,2601.4,6.84408]
[1723850741732,2.4803,2601.5,2601.4,6.84408]
[1723850742064,2.52321834,2601.5,2601.4,6.84408]
[1723850743248,2.52321834,2601.5,2601.4,5.84408]
[1723850753593,0.04291834,2601.5,2601.4,5.84408]
[1723850757249,2.51911834,2601.5,2601.4,5.84408]
[1723850758889,0.7,2601.3,2601.1,3.84442]
[1723850759184,0.7,2601.3,2601.2,10.68874]
[1723850759587,0.74122769,2601.3,2601.2,10.68874]
[1723850772288,0.74122769,2601.3,2601.2,12.164964]
[1723850773921,0.7,2601.3,2601.2,12.164964]
[1723850776586,0.74038256,2601.3,2601.2,12.164964]
[1723850776794,0.74038256,2601.3,2601.2,10.68874]
[1723850785313,0.74038256,2601.3,2601.2,6.84437]
[1723850785687,1.94586686,2601.3,2601.2,6.84437]
[1723850793457,2.3591,2600.9,2600.8,11.16496]
[1723850793622,0.7,2601.0,2600.9,3.84482]
[1723850794608,0.7,2601.0,2600.9,6.84482]
[1723850797533,0.73992377,2601.0,2600.9,6.84482]
[1723850800729,0.03992377,2601.0,2600.9,6.84482]
[1723850800933,0.03992377,2601.0,2600.9,11.785192]
[1723850801146,3.0591,2601.3,2601.2,3.84437]
[1723850802044,0.7,2601.3,2601.2,3.84437]
[1723850802625,9.36824971,2601.7,2601.6,3.84378]
[1723850802836,8.16,2601.7,2601.6,7.68756]
[1723850804247,10.5191,2601.7,2601.6,3.84378]
[1723850804450,3.99592497,2601.7,2601.6,3.84378]
[1723850804647,3.09660237,2601.7,2601.6,3.84378]
[1723850807829,3.09660237,2601.7,2601.5,3.84388]
[1723850807830,2.3709,2601.6,2601.5,3.84388]
[1723850808356,2.40807618,2601.6,2601.5,3.84388]
[1723850809053,0.7,2601.4,2601.3,3.84415]
[1723850809222,2.40807618,2601.6,2601.3,6.84415]
[1723850809424,0.03697442,2601.4,2601.3,3.84415]
[1723850809659,2.3709,2601.6,2601.4,3.84408]
[1723850811964,0.03707173,2601.5,2601.4,3.84408]
[1723850812157,0.03707173,2601.5,2601.4,6.84408]
[1723850813827,3.41622144,2601.8,2601.4,6.84408]
[1723850814044,0.03584435,2601.5,2601.4,6.84408]
[1723850814242,2.3709,2601.5,2601.4,6.84408]
[1723850814444,2.40674435,2601.5,2601.4,6.84408]
[1723850818041,2.40674435,2601.5,2601.1,3.84442]
[1723850818042,3.10674435,2601.5,2601.1,3.84442]
[1723850818258,2.3709,2601.3,2601.1,3.84442]
[1723850818567,2.3709,2601.3,2601.2,3.84437]
[1723850819272,2.3709,2601.3,2601.1,3.84451]
[1723850819467,0.7,2601.2,2601.1,3.84451]
[1723850821159,0.7,2601.2,2600.9,3.84473]
[1723850821160,0.7,2601.2,2601.0,3.84461]
[1723850821368,2.3709,2601.1,2600.9,3.84473]
[1723850821695,2.3709,2601.1,2600.9,7.68948]
[1723850821975,2.3709,2601.1,2601.0,3.84467]
[1723850822493,2.40634078,2601.1,2601.0,3.84467]
[1723850823635,2.40634078,2601.1,2600.9,3.84481]
[1723850824798,0.7,2600.9,2600.8,6.84496]
[1723850825136,0.73522228,2600.9,2600.8,6.84496]
[1723850827277,0.73522228,2600.9,2600.8,10.68993]
[1723850830964,0.03522228,2600.9,2600.8,17.882693]
[1723850831164,0.03522228,2600.9,2600.8,21.22701558]
[1723850831488,0.7,2601.6,2601.5,3.84393]
[1723850831803,0.7,2601.6,2601.5,8.45665]
[1723850831987,0.7,2601.6,2601.5,7.68786]
[1723850832159,0.7,2601.6,2601.5,3.84393]
[1723850832368,0.73591031,2601.6,2601.5,3.84393]
[1723850833473,0.03591031,2601.6,2601.5,3.84393]
[1723850833675,2.37451031,2601.6,2601.5,3.84393]
[1723850834061,2.37451031,2601.6,2601.3,3.84413]
[1723850834266,3.0386,2601.4,2601.2,3.84437]
[1723850834703,0.03562076,2601.3,2601.2,3.84437]
[1723850836120,0.03562076,2601.3,2601.1,3.0]
[1723850836305,0.34304284,2601.3,2600.9,3.84472]
[1723850836504,0.7,2601.0,2600.7,3.845]
[1723850836724,0.7,2601.0,2600.8,3.84488]
[1723850836905,0.03522545,2600.9,2600.8,3.84488]
[1723850837609,0.03522545,2600.9,2600.8,6.84488]
[1723850842007,0.03522545,2600.9,2600.8,10.68985]
[1723850846423,0.03522545,2600.9,2600.8,11.758835]
[1723850847552,0.03522545,2600.9,2600.8,10.68985]
[1723850850447,0.03522545,2600.9,2600.8,12.97395]
[1723850850650,1.20565741,2601.3,2601.2,3.84437]
[1723850854283,2.2978,2601.2,2601.0,7.68917]
[1723850854556,2.2978,2601.2,2601.1,3.84452]
[1723850857950,2.33331788,2601.2,2601.1,3.84452]
[1723850862573,3.53897529,2601.2,2601.0,3.84457]
[1723850863376,3.53897529,2601.2,2601.0,3.84459]
[1723850867574,1.24117529,2601.2,2601.1,3.84452]
[1723850867784,0.03551788,2601.2,2601.1,13.966469]
[1723850867995,0.03551788,2601.2,2601.1,18.49696]
[1723850868156,2.3110241,2601.7,2601.1,18.49696]
[1723850868157,1.90565741,2601.7,2601.5,3.84393]
[1723850868490,0.03592379,2601.6,2601.5,4.228323]
[1723850868788,0.03592379,2601.6,2601.5,3.84393]
[1723850869150,1.2415812,2601.6,2601.5,3.84393]
[1723850869377,1.2415812,2601.6,2601.4,3.84407]
[1723850879355,1.2415812,2601.6,2601.3,7.68834]
[1723850879503,1.2415812,2601.6,2601.3,7.68828]
[1723850880146,1.2415812,2601.6,2601.4,3.84401]
[1723850882544,1.2415812,2601.6,2601.4,3.84408]
[1723850882837,0.03592379,2601.6,2601.4,3.84408]
[1723850883039,1.2415812,2601.6,2601.4,3.84408]
[1723850885115,1.2415812,2601.6,2601.3,3.84417]
[1723850885440,1.2415812,2601.6,2601.3,3.84422]
[1723850885441,3.67455741,2601.5,2601.3,3.84422]
[1723850888830,3.67455741,2601.5,2601.2,3.84431]
[1723850889019,1.90565741,2601.4,2601.1,3.0]
[1723850889221,3.69375741,2601.3,2601.0,3.84457]
[1723850891007,3.69375741,2601.3,2601.0,7.68916]
[1723850891721,3.69375741,2601.3,2601.0,3.84457]
[1723850892047,3.69375741,2601.3,2601.0,7.68917]
[1723850892643,1.90565741,2601.4,2601.1,3.84445]
[1723850894163,1.90565741,2601.4,2601.2,3.84435]
[1723850894913,1.90565741,2601.4,2601.1,3.84452]
[1723850894914,1.20565741,2601.3,2601.1,3.84452]
[1723850895242,1.90565741,2601.4,2601.1,3.84452]
[1723850895439,2.4881,2601.2,2601.1,3.84452]
[1723850895647,2.4881,2601.2,2601.0,3.84457]
[1723850896321,2.4881,2601.2,2601.0,7.68917]
[1723850898146,2.4881,2601.2,2601.1,3.84452]
[1723850899324,2.4881,2601.2,2601.0,3.84457]
[1723850900153,2.4881,2601.2,2601.0,7.68917]
[1723850900353,2.4881,2601.2,2601.1,3.84452]
[1723850900544,1.20565741,2601.3,2601.1,3.84452]
[1723850900951,1.90565741,2601.4,2601.1,3.84452]
[1723850902156,1.20565741,2601.4,2601.3,3.84423]
[1723850902317,1.6110241,2601.5,2601.4,3.84408]
[1723850902318,1.20565741,2601.5,2601.4,3.84408]
[1723850902673,1.2415812,2601.6,2601.5,3.84393]
[1723850905057,1.2415812,2601.6,2601.4,3.84408]
[1723850905456,1.20565741,2601.5,2601.4,3.84408]
[1723850905851,1.2415812,2601.6,2601.4,3.84408]
[1723850906057,1.20565741,2601.5,2601.4,3.84408]
[1723850906896,1.20565741,2601.5,2601.2,3.84437]
[1723850906897,0.7,2601.4,2601.2,3.84437]
[1723850907458,1.90565741,2601.4,2601.2,3.84437]
[1723850910350,1.90565741,2601.4,2601.1,3.8445]
[1723850910544,1.90565741,2601.4,2601.1,7.68893]
[1723850910801,1.90565741,2601.4,2601.2,3.84437]
[1723850912116,1.20565741,2601.3,2601.2,3.84437]
[1723850913165,1.90565741,2601.4,2601.2,3.84437]
[1723850913491,1.90565741,2601.4,2601.3,3.84423]
[1723850914280,0.7,2601.4,2601.3,3.84423]
[1723850914766,0.7,2601.4,2601.2,3.84436]
[1723850914960,1.2066134,2601.3,2601.2,3.84436]
[1723850915165,1.2066134,2601.3,2601.0,3.84457]
[1723850915614,1.2066134,2601.3,2601.1,3.84452]
[1723850916319,1.2066134,2601.3,2601.1,7.68897]
[1723850916690,1.2066134,2601.3,2601.1,3.84445]
[1723850917008,1.2066134,2601.3,2601.2,3.84437]
[1723850919020,0.7,2601.1,2600.8,6.84483]
[1723850919220,1.90634051,2601.1,2600.8,6.84483]
[1723850920079,1.90634051,2601.1,2600.9,3.84482]
[1723850925859,1.20634051,2601.1,2601.0,3.84467]
[1723850926145,0.7,2601.4,2601.1,3.84452]
[1723850926146,3.66134051,2601.4,2601.1,3.84452]
[1723850926324,1.90629977,2601.4,2601.3,3.84423]
[1723850926727,1.90632481,2601.4,2601.3,3.84423]
[1723850926900,1.90632148,2601.4,2601.3,3.84423]
[1723850927808,1.90640362,2601.4,2601.3,3.84423]
[1723850928450,0.7,2601.4,2601.3,3.84423]
[1723850928818,2.455,2601.3,2601.1,3.84441]
[1723850929056,1.20642159,2601.2,2601.1,3.84441]
[1723850930660,1.24193309,2601.2,2601.1,3.84441]
[1723850935317,1.24193309,2601.2,2601.0,3.84467]
[1723850935555,2.455,2601.0,2600.9,3.84481]
[1723850936028,2.48975445,2601.0,2600.9,3.84481]
[1723850936522,3.69617604,2601.0,2600.8,3.0]
[1723850936722,3.69617604,2601.0,2600.8,6.84496]
[1723850937323,2.48975445,2601.0,2600.8,6.84496]
[1723850937549,3.69617604,2601.0,2600.8,10.68992]
[1723850938160,3.69617604,2601.0,2600.8,6.84496]
[1723850938921,3.69617604,2601.0,2600.8,10.68981]
[1723850939141,3.69617604,2601.0,2600.9,3.84482]
[1723850939142,2.48975445,2601.0,2600.9,3.84482]
[1723850939762,1.20642159,2601.3,2601.0,3.84467]
[1723850939933,1.20642159,2601.3,2600.9,3.366767]
[1723850939934,1.20642159,2601.5,2601.4,7.68816]
[1723850940141,1.90642159,2601.7,2601.6,3.84378]
[1723850941490,8.66642159,2601.8,2601.7,3.84364]
[1723850941789,1.20642159,2601.8,2601.7,3.84364]
[1723850945005,1.20642159,2602.0,2601.9,3.84334]
[1723850945166,1.20642159,2602.1,2602.0,3.84319]
[1723850945491,1.20642159,2602.2,2602.0,3.84319]
[1723850947406,1.20642159,2602.2,2601.7,3.84356]
[1723850947407,3.0081,2601.9,2601.7,3.84356]
[1723850947559,3.0081,2601.9,2601.8,3.84349]
[1723850947759,0.7,2601.9,2601.8,3.84349]
[1723850948877,2.3081,2602.1,2601.9,3.84326]
[1723850951422,2.3081,2602.1,2602.0,3.84319]
[1723850951577,2.3081,2602.1,2601.9,3.84326]
[1723850952006,0.7,2602.2,2602.0,3.84319]
[1723850953719,0.7,2602.2,2601.9,3.84326]
[1723850954217,0.7,2602.2,2601.9,7.68653]
[1723850954602,0.7,2602.2,2601.9,3.84326]
[1723850955127,0.7,2602.2,2601.9,7.68653]
[1723850955419,0.7,2602.2,2601.9,3.84326]
[1723850955980,0.7,2602.2,2601.9,7.68652]
[1723850956229,0.7,2602.2,2601.9,3.84326]
[1723850957025,0.7,2602.2,2601.9,7.68653]
[1723850958126,0.7,2602.2,2602.0,3.84319]
[1723850960432,0.7,2602.2,2602.1,3.84304]
[1723850962100,0.7,2602.2,2602.1,7.68608]
[1723850964543,0.7,2602.2,2602.1,3.84304]
[1723850964709,0.7,2602.2,2601.9,3.84324]
[1723850964710,3.0081,2602.2,2601.9,3.84322]
[1723850964889,3.0081,2602.2,2602.0,3.0]
[1723850965390,3.0081,2602.2,2602.1,3.84304]
[1723850966587,0.7,2602.2,2602.1,3.84304]
[1723850969140,0.7,2602.2,2602.1,7.68608]
[1723850971436,0.7,2602.2,2602.1,8.754688]
[1723850977242,0.7,2602.2,2602.1,7.68608]
[1723850979752,2.2792,2602.6,2602.4,3.84252]
[1723850980514,2.2792,2602.6,2602.5,3.84245]
[1723850982256,1.60845402,2603.0,2602.6,3.84231]
[1723850982257,2.2792,2602.8,2602.6,3.84231]
[1723850982455,2.9792,2603.0,2602.7,3.84216]
[1723850982644,2.9792,2603.0,2602.8,3.84193]
[1723850983832,2.9792,2603.0,2602.6,3.84218]
[1723850984020,5.97201392,2603.0,2602.6,3.84218]
[1723850984328,0.7,2602.7,2602.6,3.84222]
[1723850984529,2.9792,2602.7,2602.4,3.8425]
[1723850984715,0.7,2602.7,2602.4,3.8425]
[1723850984917,2.2792,2602.6,2602.4,3.8425]
[1723850985143,2.2792,2602.6,2602.5,3.84237]
[1723850987328,0.7,2602.7,2602.6,3.84231]
[1723850988434,0.7,2602.7,2602.6,7.68462]
[1723850994146,0.7,2602.7,2602.6,3.84231]
[1723850994351,3.0172,2602.7,2602.6,3.84231]
[1723850997895,2.3172,2602.9,2602.7,3.84208]
[1723850998256,2.3172,2602.9,2602.6,3.84231]
[1723850998257,2.3172,2602.9,2602.8,3.84201]
[1723851001101,0.7,2603.0,2602.9,3.84186]
[1723851001517,1.20642159,2603.2,2602.6,0.07683807]
[1723851001518,1.20642159,2603.2,2603.1,3.84157]
[1723851001668,6.96902218,2603.3,2603.1,3.84157]
[1723851001995,6.96902218,2603.3,2602.7,1.664]
[1723851001996,4.65182218,2603.3,2603.2,3.84142]
[1723851002297,3.44540059,2603.3,2603.2,3.84142]
[1723851002662,4.31593859,2603.3,2603.2,3.84142]